Cogmind - Beta 10.2 @@@ ROGUE MODE // 2021.03.16 @ 02:18:05 Player: BOTHUNTER Result: Destroyed by G-50 Soldier with Heavy Laser Performance ------------- Evolutions (4) 2000 Regions Visited (12) 2400 Robots Destroyed (68) 340 Value Destroyed (4694) 4694 Prototype IDs (12) 240 Alien Tech Used (0) 0 Bonus (2577) 2577 TOTAL SCORE: 12251 Bonus ------- High Alert Combat Kills 115 Follower Combat Kills 871 Entered Garrisons 600 Used RIF Installer 1500 Aligned with FarCom 300 Friendly Fire -809 Cogmind --------- Core Integrity 0/850 Matter 245/300 Energy 2050/2100 System Corruption 1% Temperature Cool (9) Movement Flying (120) Ox1 Location -6/Factory Parts ------- > --- POWER (1) -------- (None) > --- PROPULSION (2) --- VTOL Module > --- UTILITY (10) ----- Superbattery System Shield System Shield Relay Coupler [NC] (11) Relay Coupler [NC] (33) Relay Coupler [Swarmer] (35) Relay Coupler [Grunt] (12) Relay Coupler [Grunt] (29) Relay Coupler [Brawler] (4) Relay Coupler [Sentry] (3) > --- WEAPON (2) ------- Autogun Remote Datajack > --- INVENTORY (4) ---- Advanced Melee Analysis Suite Relay Coupler [Swarmer] (39) Relay Coupler [Brawler] (34) Improved Remote Datajack Peak State ------------ > --- POWER ------------ Light Nuclear Core > --- PROPULSION ------- VTOL Module VTOL Module > --- UTILITY ---------- Small Storage Unit Superbattery Advanced Weight Redist. System Hacking Suite Hacking Suite Hacking Suite System Shield System Shield Relay Coupler [Grunt] Relay Coupler [Hunter] > --- WEAPON ----------- Improved Remote Datajack Katana > --- INVENTORY -------- System Shield Relay Coupler [NC] Improved EM Pulse Cannon Remote Datajack [Rating: 54] Favorites ----------- Power Improved Ion Engine Engine Improved Ion Engine Power Core Light Nuclear Core Propulsion VTOL Module Treads Light Treads Wheel Wheel Hover Unit Improved Hover Unit Flight Unit VTOL Module Utility Superbattery Device Advanced Weight Redist. System Storage Superbattery Processor Advanced Targeting Computer Hackware Hacking Suite Protection Improved Light Armor Plating Weapon Katana Energy Gun EM Pulse Gun Energy Cannon Improved EM Pulse Cannon Ballistic Gun Autogun Launcher Heavy Missile Launcher Special Weapon Remote Datajack Slashing Weapon Katana Special Melee Weapon Datajack Build | -11 -10 -10 -10 -9 -8 -8 -8 -8 -7 -6 -6 -6 ------- Run | Scr Mat Min Exi Min Mat Gar Mat Gar Fac Fac Gar Fac Slots Evolved 8 | . . . . . 4 . . . 2 2 . . Power . | . . . . . . . . . . . . . Propulsion . | . . . . . . . . . . . . . Utility 8 | . . . . . 4 . . . 2 2 . . Weapon . | . . . . . . . . . . . . . Parts Attached 145 | 2 3 . 3 4 7 21 9 18 22 21 34 1 Power 7 | . . . . . 1 . 1 2 1 2 . . Engine 6 | . . . . . 1 . 1 2 . 2 . . Core 1 | . . . . . . . . . 1 . . . Reactor . | . . . . . . . . . . . . . Propulsion 25 | . 1 . . . . 3 2 3 5 6 5 . Treads 1 | . . . . . . . . . . . 1 . Leg . | . . . . . . . . . . . . . Wheel 2 | . . . . . . . . . . 2 . . Hover 3 | . . . . . . . . . . 3 . . Flight 19 | . 1 . . . . 3 2 3 5 1 4 . Utility 61 | . . . 3 3 4 9 5 9 9 6 13 . Device 8 | . . . 2 . 3 . 1 1 . 1 . . Storage 5 | . . . 1 1 1 . . . 2 . . . Processor 3 | . . . . 2 . . 1 . . . . . Hackware 44 | . . . . . . 9 3 8 7 5 12 . Protection 1 | . . . . . . . . . . . 1 . Artifact . | . . . . . . . . . . . . . Weapon 52 | 2 2 . . 1 2 9 1 4 7 7 16 1 Energy Gun 16 | 2 . . . . 1 1 . . . 3 9 . Energy Cannon 5 | . . . . . . . . 1 1 3 . . Ballistic Gun 3 | . . . . . . . . . . 1 2 . Ballistic Cannon . | . . . . . . . . . . . . . Launcher 4 | . . . . . . 4 . . . . . . Special Weapon 19 | . . . . 1 . 4 1 2 5 . 5 1 Impact Weapon . | . . . . . . . . . . . . . Slashing Weapon 3 | . . . . . 1 . . 1 1 . . . Piercing Weapon . | . . . . . . . . . . . . . Special Melee Weapon 2 | . 2 . . . . . . . . . . . Unidentified Prototypes 4 | . . . 2 . . . 1 . . 1 . . Parts Lost 47 | . 1 . . . . 3 5 1 2 19 15 1 Power 4 | . . . . . . 1 . . . 3 . . Propulsion 14 | . . . . . . 1 2 1 2 5 2 1 Utility 18 | . . . . . . 1 3 . . 7 7 . Weapon 11 | . 1 . . . . . . . . 4 6 . Highest Loss Streak 6 | . 1 . . . . 2 3 1 1 6 5 1 Average Slot Usage (%) 79 | . 29 42 42 47 68 86 75 88 93 83 74 90 Engine 2 | . . . . . 5 4 1 4 2 1 . . Flight 11 | . 2 14 14 14 9 14 6 17 14 6 5 13 Device 6 | . . . . . 21 13 5 9 7 4 . . Storage 13 | . . . . . 18 18 18 18 15 13 8 6 Processor 2 | . . . . 13 9 2 1 8 . . . . Hackware 25 | . . . . . . 18 25 15 34 39 42 60 Energy Gun 2 | . 17 14 14 4 . . . . . 1 3 . Special Weapon 4 | . . . . 9 . 5 7 6 4 3 5 3 Slashing Weapon 5 | . . . . . 6 9 9 8 6 2 . . Naked Turns . | . . . . . . . . . . . . . Heaviest Build 26 | 3 3 3 3 7 16 23 13 20 26 21 14 10 Greatest Support 20 | 3 4 4 4 4 16 20 20 20 19 20 20 10 Greatest Overweight (x) 5 | . . . . 1 1 1 4 4 1 5 3 . Average Overweight (x) . | . . . . . . . . . . . . . Largest Inventory Capacity 8 | 4 4 4 4 6 6 6 6 6 8 6 6 4 Average Capacity 5 | 4 4 4 4 4 6 6 6 6 6 6 4 4 Most Carried 6 | 3 4 4 4 5 6 6 6 6 6 6 6 4 Average Carried 4 | 2 3 4 4 4 5 5 3 4 5 4 4 3 Final Capacity 6 | 4 4 4 4 6 6 6 6 6 6 6 4 4 Final Carried 6 | 3 4 4 4 5 6 6 4 6 4 5 4 4 Class Distribution -------------------- 39% | Bothacker-Mutant 29% | Mutant 26% | Hacker-Mutant 3% | Commander-Mutant Dominant Class ---------------- Mutant | -10/Materials Mutant | -10/Mines Mutant | -10/Exiles Mutant | -9/Mines Mutant | -8/Materials Bothacker-Mutant | -8/Garrison Bothacker-Mutant | -8/Materials Mutant | -8/Garrison Bothacker-Mutant | -7/Factory Hacker-Mutant | -6/Factory Hacker-Mutant | -6/Garrison Bothacker-Mutant | -6/Factory Resources | -11 -10 -10 -10 -9 -8 -8 -8 -8 -7 -6 -6 -6 ----------- Run | Scr Mat Min Exi Min Mat Gar Mat Gar Fac Fac Gar Fac Matter Collected 2287 | 220 30 10 . 101 . 511 170 285 184 367 409 . Remotely . | . . . . . . . . . . . . . Salvage Created 3439 | 106 200 . . . 78 560 281 904 252 646 402 10 Parts 153 | 5 9 . . . 4 34 10 24 16 40 10 1 Haulers Intercepted 5 | . 1 . . . 1 . 1 . 1 1 . . Recyclers Shooed 2 | . . . . . . . . . . 2 . . Parts Field Recycled . | . . . . . . . . . . . . . Retrieved Matter . | . . . . . . . . . . . . . Parts Self-Destructed . | . . . . . . . . . . . . . Prevented . | . . . . . . . . . . . . . Kills | -11 -10 -10 -10 -9 -8 -8 -8 -8 -7 -6 -6 -6 ------- Run | Scr Mat Min Exi Min Mat Gar Mat Gar Fac Fac Gar Fac Combat Hostiles Destroyed 47 | . 3 . . . . 15 3 3 4 9 10 . Melee 11 | . . . . . . 3 3 3 1 . 1 . Guns 13 | . 3 . . . . . . . . 3 7 . Cannons 6 | . . . . . . . . . 3 3 . . AOE 13 | . . . . . . 12 . . . 1 . . Classes Destroyed 13 | 2 4 . . . 1 2 . 1 1 2 . . Worker 4 | . . . . . . . . . 1 2 . 1 Builder 1 | . . . . . . . . . . 1 . . Tunneler 1 | 1 . . . . . . . . . . . . Hauler 5 | . 1 . . . 1 . 1 . 1 1 . . Recycler 1 | 1 . . . . . . . . . . . . Operator 3 | . 2 . . . . . 1 . . . . . Watcher 4 | . . . . . 1 . . . 2 1 . . Swarmer 22 | . 1 . . . . 8 . . 3 4 6 . Grunt 14 | . 2 . . . . 4 3 1 1 1 2 . Brawler 2 | . . . . . . 2 . . . . . . Sentry 8 | . . . . . . 1 1 2 . 3 1 . Programmer 1 | . . . . . . . . . . 1 . . Behemoth 2 | . . . . . . . . 1 . . 1 . Best Kill Streak 9 | 2 2 . . . 1 9 2 1 3 4 4 1 Combat Bots Only 9 | . 1 . . . . 9 1 1 3 3 4 . Max Kills in Single Turn 7 | 1 1 . . . 1 7 1 1 1 1 1 1 Gunslinging . | . . . . . . . . . . . . . Exploded 7 | . . . . . . 7 . . . 1 . . Melee 1 | . . . . . . 1 1 1 1 . 1 . Uniques/NPCs Destroyed . | . . . . . . . . . . . . . Combat | -11 -10 -10 -10 -9 -8 -8 -8 -8 -7 -6 -6 -6 -------- Run | Scr Mat Min Exi Min Mat Gar Mat Gar Fac Fac Gar Fac Damage Taken 4170 | . 57 . . . 7 424 196 365 378 1248 1438 57 Core 1518 | . 25 . . . 7 218 82 141 184 300 522 39 Absorbed by Shields 66 | . . . . . . . . 44 . . 22 . Core Remaining (%) 70 | 100 . . . 90 . . . 18 73 . . . Volleys Fired 265 | 4 27 . . 4 . 38 21 15 24 56 63 13 Largest 2 | 2 2 . . 1 . 1 1 1 1 2 2 1 Hottest 160 | 80 80 . . 30 . 55 30 30 90 110 160 30 Shots Fired 286 | 8 33 . . 4 . 38 21 15 24 65 65 13 Gun 142 | 8 33 . . . . 2 . . . 42 47 10 Cannon 17 | . . . . . . . . . 5 12 . . Launcher 9 | . . . . . . 9 . . . . . . Special 118 | . . . . 4 . 27 21 15 19 11 18 3 Kinetic 26 | . . . . . . . . . . 7 9 10 Thermal 88 | 4 6 . . . . . . . 5 35 38 . Explosive 9 | . . . . . . 9 . . . . . . Electromagnetic 45 | 4 27 . . . . 2 . . . 12 . . Robot Hit Streak 15 | 7 12 . . 10 . 14 8 7 7 15 9 7 Robot Miss Streak 3 | 1 3 . . . . 3 2 1 1 3 3 1 Penetration Max . | . . . . . . . . . . . . . Secondary Targets . | . . . . . . . . . . . . . Shots Hit Robots 326 | 7 28 2 . 6 5 40 25 67 36 56 43 11 Core Hits 114 | 3 6 . . . 2 22 5 20 9 23 20 4 Critical Hits 1 | . . . . . . . . 1 . . . . Critical Kills . | . . . . . . . . . . . . . Critical Parts Destroyed . | . . . . . . . . . . . . . Melee Attacks 190 | . 11 2 . 2 14 36 14 80 21 10 . . Impact . | . . . . . . . . . . . . . Slashing 175 | . . . . . 14 36 14 80 21 10 . . Piercing . | . . . . . . . . . . . . . Sneak Attacks 27 | . 3 2 . 2 2 3 5 7 2 1 . . Combat Hostiles 4 | . . . . . . 2 1 1 . . . . Follow-up Attacks . | . . . . . . . . . . . . . Damage Inflicted 9712 | 104 275 . . . 344 1818 681 3733 791 1149 685 132 Guns 1695 | 60 275 . . . . 19 . . . 546 663 132 Cannons 337 | . . . . . . . . . 101 236 . . Explosions 1069 | 44 . . . . . 961 . . . 64 . . Melee 6589 | . . . . . 344 838 681 3733 690 303 . . Ramming 22 | . . . . . . . . . . . 22 . Kinetic 271 | . . . . . . . . . . 92 47 132 Thermal 1309 | 64 10 . . . . . . . 101 518 616 . Explosive 961 | . . . . . . 961 . . . . . . Electromagnetic 560 | 40 265 . . . . 19 . . . 236 . . Impact . | . . . . . . . . . . . . . Slashing 6589 | . . . . . 344 838 681 3733 690 303 . . Piercing . | . . . . . . . . . . . . . Highest Corruption 3 | . 3 3 3 3 . . . . . 1 1 1 Average Corruption 1 | . 2 3 3 3 . . . . . 1 1 1 Corruption Purged . | . . . . . . . . . . . . . Effects 23 | . 2 3 3 4 . . . . . 3 8 . Message Errors 8 | . 1 1 2 . . . . . . 1 3 . Matter Fused 4 | . 1 1 . 2 . . . . . . . . Energy Discharges 2 | . . . . 1 . . . . . . 1 . Data Loss (minor) 7 | . . 1 1 1 . . . . . 1 3 . Targeting Errors 2 | . . . . . . . . . . 1 1 . Overload Shots . | . . . . . . . . . . . . . Overflow Damage 769 | . . . . . 96 114 167 287 100 5 . . Projectiles . | . . . . . . . . . . . . . Explosions 13 | . . . . . . 13 . . . . . . Melee 756 | . . . . . 96 101 167 287 100 5 . . Knockbacks . | . . . . . . . . . . . . . Impact . | . . . . . . . . . . . . . Kinetic . | . . . . . . . . . . . . . Secondary . | . . . . . . . . . . . . . Self-Inflicted Damage 37 | . . . . . . . . . . 26 11 . Shots 1 | . . . . . . . . . . 1 . . Rammed 5 | . . . . . . . . . . . 4 1 Targets Rammed 5 | . . . . . . . . . . . 4 1 Kicked . | . . . . . . . . . . . . . Crushed . | . . . . . . . . . . . . . Highest Temperature 154 | 12 31 . . 7 . 17 8 17 154 38 68 . Average Temperature 17 | 6 9 . . 6 . 5 3 9 42 11 18 . Received Heat Transfer 753 | . 6 . . . . 72 81 87 75 141 264 27 Siege Activations . | . . . . . . . . . . . . . Robots Corrupted 1 | . . . . . . . . . . 1 . . Combat Hostiles 1 | . . . . . . . . . . 1 . . Parts Fried 4 | . 3 . . . . . . . . 1 . . Impact Corruptions . | . . . . . . . . . . . . . Robots Melted 3 | . . . . . . . . . . 1 2 . Combat Hostiles 3 | . . . . . . . . . . 1 2 . Parts Melted 7 | . . . . . . . . . . . 7 . Heat Transferred 2455 | 100 25 . . . . . . . 150 999 1181 . Parts Sabotaged . | . . . . . . . . . . . . . Parts Stolen . | . . . . . . . . . . . . . Parts Stripped . | . . . . . . . . . . . . . Power Chain Reactions 2 | 1 . . . . . . . . . 1 . . Missiles Intercepted . | . . . . . . . . . . . . . Alert | -11 -10 -10 -10 -9 -8 -8 -8 -8 -7 -6 -6 -6 ------- Run | Scr Mat Min Exi Min Mat Gar Mat Gar Fac Fac Gar Fac Peak Influence 907 | 10 268 104 . . 87 907 545 799 905 368 279 119 Initial 442 | . 6 104 . . . 44 442 206 398 359 84 114 Average 320 | 2 163 104 . . 26 497 378 413 510 208 163 114 Maximum Alert Level 3 | . 1 . . . . 3 2 3 3 1 1 . Low Security (%) 36 | 100 52 100 . 100 100 28 . . . 54 76 100 Level 1 32 | . 47 . . . . 4 58 59 17 45 23 . Level 2 22 | . . . . . . 37 41 32 64 . . . Level 3 8 | . . . . . . 29 . 7 17 . . . Level 4 . | . . . . . . . . . . . . . Level 5 . | . . . . . . . . . . . . . High Security . | . . . . . . . . . . . . . Max Security . | . . . . . . . . . . . . . Squads Dispatched 18 | . 4 . . 1 1 . 2 . 4 6 . . Investigation 10 | . 2 . . 1 1 . 2 . 2 2 . . Extermination 2 | . . . . . . . . . 1 1 . . Reinforcement 4 | . 2 . . . . . . . . 2 . . Assault 1 | . . . . . . . . . 1 . . . Garrison 1 | . . . . . . . . . . 1 . . Intercept . | . . . . . . . . . . . . . Construction Impeded . | . . . . . . . . . . . . . Haulers Reinforced 1 | . . . . . . . . . . 1 . . Stealth | -11 -10 -10 -10 -9 -8 -8 -8 -8 -7 -6 -6 -6 --------- Run | Scr Mat Min Exi Min Mat Gar Mat Gar Fac Fac Gar Fac Distress Signals 7 | . 3 . . . . . 2 . . 2 . . Communications Jammed . | . . . . . . . . . . . . . Distress Signals . | . . . . . . . . . . . . . Times Spotted 174 | . 28 . . 2 8 28 23 15 20 22 27 1 Peak Tracking Total 10 | . 8 . . 1 4 10 5 3 4 4 4 1 Tactical Retreats 17 | . 6 . . . 1 . . . 6 2 2 . Traps | -11 -10 -10 -10 -9 -8 -8 -8 -8 -7 -6 -6 -6 ------- Run | Scr Mat Min Exi Min Mat Gar Mat Gar Fac Fac Gar Fac Traps Triggered 26 | . 3 . . . . 7 . 7 1 2 6 . Indirectly . | . . . . . . . . . . . . . Trap Hack Attempts . | . . . . . . . . . . . . . Triggered . | . . . . . . . . . . . . . Disarmed . | . . . . . . . . . . . . . Reprogrammed . | . . . . . . . . . . . . . Reused . | . . . . . . . . . . . . . Traps Extracted . | . . . . . . . . . . . . . Installed . | . . . . . . . . . . . . . Triggered . | . . . . . . . . . . . . . Machines | -11 -10 -10 -10 -9 -8 -8 -8 -8 -7 -6 -6 -6 ---------- Run | Scr Mat Min Exi Min Mat Gar Mat Gar Fac Fac Gar Fac Machines Disabled 20 | . 2 . . . . 8 1 5 . . 4 . Max in Single Turn 1 | . 1 . . . . 1 . 1 . . 1 . Garrison Access 3 | . . . . . . . . . 1 2 . . Garrison Relay 13 | . . . . . . 5 . 4 . . 4 . Phase Generator 1 | . . . . . . 1 . . . . . . Machines Sabotaged . | . . . . . . . . . . . . . Garrisons Compromised . | . . . . . . . . . . . . . Overloaded Fab Kills . | . . . . . . . . . . . . . Fab Network Shutdowns 1 | . . . . . . . . . 1 . . . Hacking | -11 -10 -10 -10 -9 -8 -8 -8 -8 -7 -6 -6 -6 --------- Run | Scr Mat Min Exi Min Mat Gar Mat Gar Fac Fac Gar Fac Machines Accessed 37 | . 2 . . 1 5 . 6 . 9 14 . . Terminals 20 | . 2 . . . 3 . 3 . 2 10 . . Fabricators 4 | . . . . . . . . . 4 . . . Repair Stations 2 | . . . . . . . 1 . 1 . . . Recycling Units 2 | . . . . . . . 1 . 1 . . . Scanalyzers 2 | . . . . . 1 . . . . 1 . . Garrison Access 6 | . . . . . 1 . 1 . 1 3 . . Total Hacks 122 | . 5 . . 1 23 . 14 . 21 58 . . Successful 80 | . 3 . . 1 12 . 10 . 17 37 . . Failed 42 | . 2 . . . 11 . 4 . 4 21 . . Catastrophic 5 | . . . . . 2 . . . . 3 . . Database Lockouts . | . . . . . . . . . . . . . Manual 50 | . 5 . 1 . 9 . 3 . 2 30 . . Terminals 72 | . 5 . . . 9 . 9 . 7 42 . . Fabricators 8 | . . . . . . . . . 8 . . . Repair Stations 4 | . . . . . . . 2 . 2 . . . Recycling Units 3 | . . . . . . . 1 . 2 . . . Scanalyzers 23 | . . . . . 10 . . . . 13 . . Garrison Access 11 | . . . . . 4 . 2 . 2 3 . . Terminal Hacks 25 | . 1 . . 1 . . 4 . 2 17 . . Part Schematic 2 | . . . . . . . . . 1 1 . . Robot Analysis 5 | . 1 . . . . . 1 . . 3 . . Open Door 1 | . . . . 1 . . . . . . . . Branch Access Points 1 | . . . . . . . . . . 1 . . Emergency Access Points 1 | . . . . . . . . . . 1 . . Terminal Index 1 | . . . . . . . . . . 1 . . Garrison Index 1 | . . . . . . . . . . 1 . . Unreport Threat 2 | . . . . . . . 2 . . . . . Locate Traps 5 | . . . . . . . 1 . . 4 . . Recall Investigation 1 | . . . . . . . . . . 1 . . Recall Extermination 2 | . . . . . . . . . 1 1 . . Recall Reinforcements 1 | . . . . . . . . . . 1 . . Zone Layout 2 | . . . . . . . . . . 2 . . Fabricator Hacks 7 | . . . . . . . . . 7 . . . Load Schematic 2 | . . . . . . . . . 2 . . . Build 5 | . . . . . . . . . 5 . . . Repair Station Hacks 4 | . . . . . . . 2 . 2 . . . Scan Component 2 | . . . . . . . 1 . 1 . . . Repair 2 | . . . . . . . 1 . 1 . . . Recycling Unit Hacks 3 | . . . . . . . 1 . 2 . . . Report Inventory 2 | . . . . . . . 1 . 1 . . . Retrieve Components 1 | . . . . . . . . . 1 . . . Scanalyzer 17 | . . . . . 9 . . . . 8 . . Insert Component 7 | . . . . . 4 . . . . 3 . . Analyze 10 | . . . . . 5 . . . . 5 . . Garrison Access Hacks 8 | . . . . . 1 . 2 . 2 3 . . Unlock Access 4 | . . . . . 1 . 1 . 1 1 . . Seal Access 2 | . . . . . . . . . . 2 . . Coupler Status 2 | . . . . . . . 1 . 1 . . . Unauthorized Hacks 16 | . 2 . . . 2 . 1 . 2 9 . . Terminals 15 | . 2 . . . 2 . 1 . 2 8 . . Track 2 | . . . . . . . . . . 2 . . Botnet 10 | . 1 . . . 1 . 1 . 2 5 . . Operators 3 | . 1 . . . 1 . . . . 1 . . Fabricators . | . . . . . . . . . . . . . Repair Stations . | . . . . . . . . . . . . . Recycling Units . | . . . . . . . . . . . . . Scanalyzers 1 | . . . . . . . . . . 1 . . Extract 1 | . . . . . . . . . . 1 . . Garrison Access . | . . . . . . . . . . . . . Data Cores Recovered 1 | . . . . . . . 1 . . . . . Used 1 | . . . . . . . 1 . . . . . Hacking Detections 27 | . 2 . . . 4 . 5 . 7 9 . . Full Trace Events 8 | . 1 . . . 2 . 2 . 2 1 . . Feedback Events . | . . . . . . . . . . . . . Feedback Blocked . | . . . . . . . . . . . . . Robot Schematics Acquired . | . . . . . . . . . . . . . Robots Built . | . . . . . . . . . . . . . Matter . | . . . . . . . . . . . . . Time . | . . . . . . . . . . . . . Total Robot Build Rating . | . . . . . . . . . . . . . Part Schematics Acquired 17 | . . . . . 4 . . . 1 12 . . Parts Built 4 | . . . . . . . . . 4 . . . Matter 650 | . . . . . . . . . 650 . . . Time 325 | . . . . . . . . . 325 . . . Total Part Build Rating 15 | . . . . . . . . . 15 . . . Parts Repaired 2 | . . . . . . . 1 . 1 . . . Time 60 | . . . . . . . 44 . 16 . . . Parts Recycled . | . . . . . . . . . . . . . Recycled Matter . | . . . . . . . . . . . . . Retrieved Matter . | . . . . . . . . . . . . . Retrieved Components 2 | . . . . . . . . . 2 . . . Parts Scanalyzed 7 | . . . . . 4 . . . . 3 . . Part Schematics Acquired 7 | . . . . . 4 . . . . 3 . . Parts Damaged . | . . . . . . . . . . . . . Bothacking | -11 -10 -10 -10 -9 -8 -8 -8 -8 -7 -6 -6 -6 ------------ Run | Scr Mat Min Exi Min Mat Gar Mat Gar Fac Fac Gar Fac Used RIF Installer 3 | . . . . . . 1 . 1 . . 1 . Zone Cloak 1 | . . . . . . . . 1 . . . . Autooverride 1 | . . . . . . . . . . . 1 . Robots Hacked 75 | . 6 1 . 3 . 9 12 7 13 7 15 2 Non-combat 28 | . 3 1 . 1 . . 6 . 10 5 1 1 Combat 47 | . 3 . . 2 . 9 6 7 3 2 14 1 Autooverrided 1 | . . . . . . . . . . . . 1 Robot Hacks Applied 85 | . 6 1 . 3 . 10 13 8 18 8 16 2 parse_system 15 | . 3 1 . 2 . 2 . 1 4 . 1 1 no_distress 8 | . 2 . . 1 . . 2 . 1 2 . . find_chute 1 | . . . . . . . . . . 1 . . hold_bot 1 | . . . . . . . . . . . . 1 ignore_repairs 6 | . . . . . . . 2 . 4 . . . find_fabricator 1 | . . . . . . . . . . 1 . . drop_inventory 1 | . . . . . . . . . 1 . . . find_recycling 1 | . . . . . . . 1 . . . . . check_alert 1 | . 1 . . . . . . . . . . . block_reporting 1 | . . . . . . . 1 . . . . . map_route 3 | . . . . . . . . . 2 1 . . relay_feed 1 | . . . . . . . . . 1 . . . find_garrison 1 | . . . . . . . 1 . . . . . reboot_propulsion 1 | . . . . . . . . . . . 1 . disrupt_area 1 | . . . . . . 1 . . . . . . spike_heat 4 | . . . . . . . . . . 1 3 . wipe_record 1 | . . . . . . . 1 . . . . . disable_weapons 1 | . . . . . . . 1 . . . . . go_dormant 2 | . . . . . . 2 . . . . . . overwrite_iff 5 | . . . . . . 1 . 1 . . 3 . streamctrl_high 5 | . . . . . . . 1 1 2 . 1 . formatsys_low 2 | . . . . . . . . . 1 1 . . formatsys_high 22 | . . . . . . 4 3 5 2 1 7 . Relay Couplers Released 60 | . . . . . . 21 . 17 2 . 20 . Machine Destruction 60 | . . . . . . 21 . 17 2 . 20 . Attached 36 | . . . . . . 8 3 8 4 2 11 . Robots Rewired 9 | . . . . . . 5 . 3 . 1 . . Allies Hacked . | . . . . . . . . . . . . . Hacks Repelled . | . . . . . . . . . . . . . Allies | -11 -10 -10 -10 -9 -8 -8 -8 -8 -7 -6 -6 -6 -------- Run | Scr Mat Min Exi Min Mat Gar Mat Gar Fac Fac Gar Fac Total Allies 47 | . . 3 . . . 10 4 10 5 3 11 1 Largest Group 8 | . . 3 3 3 3 8 5 5 4 3 4 1 Highest-Rated Group 144 | . . 40 40 40 40 133 84 144 81 81 107 29 Highest-Rated Ally 81 | . . 16 16 16 16 29 29 81 33 32 32 29 Total Orders 19 | . . . . . . 5 2 4 3 5 . . STAY 5 | . . . . . . 2 1 1 1 . . . FOLLOW 10 | . . . . . . 3 1 2 2 2 . . GUARD 1 | . . . . . . . . 1 . . . . AID 3 | . . . . . . . . . . 3 . . Ally Attacks 188 | . . . . . 9 42 49 40 13 9 26 . Total Damage 3554 | . . . . . 97 767 837 832 174 337 510 . Kills 36 | . . . . . 1 10 10 12 1 2 . . Allies Corrupted . | . . . . . . . . . . . . . Allies Melted . | . . . . . . . . . . . . . Intel | -11 -10 -10 -10 -9 -8 -8 -8 -8 -7 -6 -6 -6 ------- Run | Scr Mat Min Exi Min Mat Gar Mat Gar Fac Fac Gar Fac Robot Analysis Total 5 | . 1 . . . . . 1 . . 3 . . Derelict Logs Recovered 3 | . . 2 . 1 . . . . . . . . Drone Launches 4 | . . . . . . . . . . 4 . . Drone Recoveries 2 | . . . . . . . . . . 2 . . Exploration | -11 -10 -10 -10 -9 -8 -8 -8 -8 -7 -6 -6 -6 ------------- Run | Scr Mat Min Exi Min Mat Gar Mat Gar Fac Fac Gar Fac Turns Passed 8427 | 42 299 120 167 258 181 1417 676 1637 836 1399 1307 88 Spaces Moved 6886 | 48 303 152 254 459 270 963 431 935 905 1196 825 145 Core 466 | 48 249 . . . . 31 65 1 28 35 9 . Treads 43 | . . . . . . . . . . . 43 . Legs . | . . . . . . . . . . . . . Wheels 294 | . . . . . . . . . . 41 253 . Hover 420 | . . . . . . . . . . 420 . . Flight 5663 | . 54 152 254 459 270 932 366 934 877 700 520 145 Fastest Speed 34 | 50 40 40 40 40 40 37 34 34 37 37 37 37 Average Speed 53 | 50 48 40 40 41 40 59 85 36 40 70 59 37 Slowest Speed 300 | 50 50 40 40 120 120 120 280 250 120 300 220 37 Overloaded Moves . | . . . . . . . . . . . . . Propulsion Burnouts . | . . . . . . . . . . . . . Robots Hopped 31 | . . 4 . 3 . . 3 4 9 5 3 . Cave-ins Triggered . | . . . . . . . . . . . . . Exploration Rate (%) 45 | 3 49 30 63 76 27 95 41 78 20 33 76 4 Regions Visited 12 Branch Regions 3 Pre-discovered Areas 1 | . . 1 . . . . . . . . . . Known Exits Taken 3 | . . . . . 1 . 1 . . 1 . . Unknown Exits Taken 6 | 1 1 1 1 1 . . . . 1 . . . Scrap Searched 1 | . . . . 1 . . . . . . . . Spaces Dug 29 | . . . . . 9 6 3 7 2 2 . . Terrain Destroyed 189 | 6 . . . . 9 152 3 7 4 8 . . Melee 29 | . . . . . 9 6 3 7 2 2 . . Projectile 2 | . . . . . . . . . 2 . . . AOE 158 | 6 . . . . . 146 . . . 6 . . Terrain Rammed . | . . . . . . . . . . . . . Walls Destroyed . | . . . . . . . . . . . . . Machines Disabled . | . . . . . . . . . . . . . Actions | -11 -10 -10 -10 -9 -8 -8 -8 -8 -7 -6 -6 -6 --------- Run | Scr Mat Min Exi Min Mat Gar Mat Gar Fac Fac Gar Fac Total 11080 | 56 411 204 319 521 319 1725 704 2098 1319 1669 1566 169 Wait 3242 | . 61 55 58 49 23 570 228 931 323 382 554 8 Move 6816 | 47 302 143 253 452 270 962 424 928 886 1185 819 145 Hop 28 | . . 4 . 3 . . 3 2 9 5 2 . Pick Up 43 | 3 4 . 1 3 2 9 2 8 4 3 3 1 Fast Attach 73 | 2 2 . 3 2 5 8 5 7 8 13 18 . Attach 48 | . 1 . . 1 2 9 4 6 10 7 7 1 Detach 23 | . . . . . 2 4 2 4 4 4 3 . Swap 24 | . . . . 1 . 4 . 5 4 1 9 . Drop 54 | . 3 . 4 4 1 12 1 12 10 3 4 . Fire 265 | 4 27 . . 4 . 38 21 15 24 56 63 13 Melee 190 | . 11 2 . 2 14 36 14 80 21 10 . . Ram 5 | . . . . . . . . . . . 4 1 Kick . | . . . . . . . . . . . . . Crush . | . . . . . . . . . . . . . Escape Stasis 261 | . . . . . . 69 . 100 16 . 76 . Rewire 8 | . . . . . . 4 . . . . 4 . Trap . | . . . . . . . . . . . . . Miscellaneous . | . . . . . . . . . . . . . Route ------- -11/Scrapyard -10/Materials -10/Mines (discovered 2 exits: [*Mat] / *Exi) -10/Exiles -9/Mines -8/Materials -8/Garrison (discovered 3 exits: *Mat x3) -8/Materials (discovered 2 exits: *Fac / Gar) -8/Garrison (discovered 3 exits: *Fac x3) -7/Factory (discovered 3 exits: *Fac x2 / [*Low]) -6/Factory (discovered 6 exits: [*Fac x3] / *Low x2 / Gar) -6/Garrison (discovered 3 exits: [*Fac x3]) -6/Factory History --------- Turn | Location | Event 6 | -11/Scrapyard | Discovered new exit (range 14) 43 | -11/Scrapyard | Entered Materials 106 | -10/Materials | Met 8R-AWN 252 | -10/Materials | Discovered new exit (range 15) 314 | -10/Materials | Build established: Mutant 342 | -10/Materials | Entered Mines 343 | -10/Mines | Followed 8R-AWN into the Mines 371 | -10/Mines | Assisted by bots powering up and referring to "LRC-V3" 384 | -10/Mines | Learned location of Zion (-6) 391 | -10/Mines | Learned Materials interactive machine intel 399 | -10/Mines | Discovered new exit (range 8) 446 | -10/Mines | Discovered new exit (range 5) 462 | -10/Mines | Entered Exiles 462 | -10/Exiles | Accompanied by 3 allies 472 | -10/Exiles | Welcomed by 8R-AWN 479 | -10/Exiles | Met EX-HEX 491 | -10/Exiles | Met EX-BIN 496 | -10/Exiles | Aligned with FarCom system 497 | -10/Exiles | Given EX-Vault access code 506 | -10/Exiles | Opened EX-Vault 509 | -10/Exiles | Found Prototype Device 509 | -10/Exiles | Identified PSU Rigger 513 | -10/Exiles | Found Prototype Storage 513 | -10/Exiles | Identified Superbattery 531 | -10/Exiles | Warned to stay clear of 0b10 Research branches 542 | -10/Exiles | Met EX-DEC 568 | -10/Exiles | Discovered new exit (range 10) 629 | -10/Exiles | Left Exiles lab with Superbattery 629 | -10/Exiles | Entered Mines 629 | -9/Mines | Accompanied by 3 allies 643 | -9/Mines | Received a Rocket Launcher from a helpful Derelict 676 | -9/Mines | Met a Derelict bent on vengeance 705 | -9/Mines | Met a Derelict shopkeep closing up shop 828 | -9/Mines | Discovered new exit (range 10) 873 | -9/Mines | Learned Materials garrison access intel 887 | -9/Mines | Entered Materials 887 | -8/Materials | Accompanied by 3 allies 887 | -8/Materials | Evolved 4 slots: Utility x4 888 | -8/Materials | Loaded intel: 18 interactive machine locations 889 | -8/Materials | Loaded intel: 1 garrison access location 1068 | -8/Materials | Identified exit to Garrison 1068 | -8/Materials | Entered Garrison 1070 | -8/Garrison | Installed Relay Interface Framework 1152 | -8/Garrison | Triggered checkpoint 1214 | -8/Garrison | Garrison Relay disabled 1470 | -8/Garrison | Triggered checkpoint 1478 | -8/Garrison | Triggered checkpoint 1502 | -8/Garrison | Destroyed 9 combat bots 1815 | -8/Garrison | Discovered new exit (range 9) 1818 | -8/Garrison | Triggered checkpoint 1828 | -8/Garrison | Triggered checkpoint 1872 | -8/Garrison | Garrison Relay disabled 1908 | -8/Garrison | Triggered checkpoint 2041 | -8/Garrison | Phase Generator disabled 2059 | -8/Garrison | Discovered new exit (range 12) 2063 | -8/Garrison | Triggered checkpoint 2164 | -8/Garrison | Discovered new exit (range 9) 2186 | -8/Garrison | Triggered checkpoint 2207 | -8/Garrison | Garrison Relay disabled 2234 | -8/Garrison | Triggered checkpoint 2260 | -8/Garrison | Garrison Relay disabled 2366 | -8/Garrison | Garrison Relay disabled 2485 | -8/Garrison | Entered Materials 2485 | -8/Materials | Accompanied by 3 allies 2494 | -8/Materials | Build established: Bothacker-Mutant 2542 | -8/Materials | Lost 3 parts (1n2u) 2570 | -8/Materials | Core integrity fell below 50% 3012 | -8/Materials | Discovered new exit (range 9) 3084 | -8/Materials | Repaired Remote Datajack 3158 | -8/Materials | Identified exit to Garrison 3161 | -8/Materials | Entered Garrison 3307 | -8/Garrison | Build established: Mutant 3474 | -8/Garrison | Spotted B-75 Beast 3478 | -8/Garrison | Hijacked Beast 3a control node with streamctrl_high 3498 | -8/Garrison | Triggered checkpoint 4021 | -8/Garrison | Destroyed Beast 3a 4044 | -8/Garrison | Garrison Relay disabled 4130 | -8/Garrison | Triggered checkpoint 4139 | -8/Garrison | Triggered checkpoint 4149 | -8/Garrison | Triggered checkpoint 4200 | -8/Garrison | Discovered new exit (range 15) 4208 | -8/Garrison | Expanded RIF knowledge: Zone Cloak 4352 | -8/Garrison | Discovered new exit (range 11) 4406 | -8/Garrison | Triggered checkpoint 4444 | -8/Garrison | Discovered new exit (range 12) 4502 | -8/Garrison | Build established: Bothacker-Mutant 4513 | -8/Garrison | Core integrity fell below 20% 4587 | -8/Garrison | Garrison Relay disabled 4645 | -8/Garrison | Triggered checkpoint 4671 | -8/Garrison | Garrison Relay disabled 4720 | -8/Garrison | Garrison Relay disabled 4754 | -8/Garrison | Triggered checkpoint 4798 | -8/Garrison | Entered Factory 4798 | -7/Factory | Accompanied by 2 allies 4798 | -7/Factory | Evolved 2 slots: Utility x2 4887 | -7/Factory | Fabricated Hacking Suite (x1) 4964 | -7/Factory | Fabricated Hacking Suite (x1) 4992 | -7/Factory | Discovered new exit (range 11) 5046 | -7/Factory | Discovered new exit (range 12) 5269 | -7/Factory | Fabricated Hacking Suite? 5447 | -7/Factory | Fabricated Imp. Remote Datajack (x1) 5486 | -7/Factory | Local fabrication network quarantined 5536 | -7/Factory | Identified exit to Garrison 5588 | -7/Factory | Repaired VTOL Module 5621 | -7/Factory | Discovered new exit (range 15) 5634 | -7/Factory | Entered another Factory area 5634 | -6/Factory | Accompanied by 1 ally 5634 | -6/Factory | Evolved 2 slots: Utility x2 5859 | -6/Factory | Identified exit to Lower Caves 5930 | -6/Factory | Build established: Hacker-Mutant 6227 | -6/Factory | Lost 4 parts (1p1n1u1w) 6236 | -6/Factory | Discovered new exit (range 126) 6396 | -6/Factory | Discovered new exit (range 14) 6410 | -6/Factory | Discovered new exit (range 13) 6451 | -6/Factory | Lost 5 parts (2n2u1w) 6985 | -6/Factory | Lost 6 parts (1p2n2u1w) 7018 | -6/Factory | Garrison activated, responded to threat 7027 | -6/Factory | Identified exit to Garrison 7033 | -6/Factory | Entered Garrison 7056 | -6/Garrison | Triggered checkpoint 7093 | -6/Garrison | Garrison Relay disabled 7344 | -6/Garrison | Spotted B-75 Beast 7350 | -6/Garrison | Triggered checkpoint 7355 | -6/Garrison | Triggered checkpoint 7471 | -6/Garrison | Core integrity fell below 50% 7504 | -6/Garrison | Lost 5 parts (3u2w) 7676 | -6/Garrison | Destroyed B-75 Beast 7765 | -6/Garrison | Triggered checkpoint 7815 | -6/Garrison | Discovered new exit (range 10) 7948 | -6/Garrison | Triggered checkpoint 8022 | -6/Garrison | Core integrity fell below 20% 8042 | -6/Garrison | Garrison Relay disabled 8171 | -6/Garrison | Discovered new exit (range 10) 8177 | -6/Garrison | Expanded RIF knowledge: Autooverride 8192 | -6/Garrison | Triggered checkpoint 8226 | -6/Garrison | Garrison Relay disabled 8283 | -6/Garrison | Discovered new exit (range 13) 8292 | -6/Garrison | Triggered checkpoint 8310 | -6/Garrison | Triggered checkpoint 8313 | -6/Garrison | Build established: Bothacker-Mutant 8313 | -6/Garrison | Garrison Relay disabled 8340 | -6/Garrison | Entered Factory 8428 | -6/Factory | Destroyed by G-50 Soldier with Heavy Laser Last Messages --------------- 08340_ Receiving FarCom transmissions... 08373_ Acquired Adv. Melee Analysis Suite. 08390_ Jacked K-01 Serf... >>find_chute No applicable chute records found in memory. 08391_ Jacked K-01 Serf... >>hold_bot Set hold target: G-50 Soldier. 08401_ RIF automatically rewrites G-50 Soldier IFF filter. 08402_ G-50 Soldier struggles to move. 08403_ K-01 Serf latches onto G-50 Soldier. 08404_ G-50 Soldier struggles to move. 08407_ Jacked G-50 Soldier... >>parse_system Reading system data... 08412_ Network quickbooting G-50 Soldier, ETC: 10. 08414_ K-01 Serf destroyed. 08416_ Slammed into G-50 Soldier. 08422_ G-50 Soldier reactivates. 08422_ VTOL Module destroyed. Map ----- +----------------------------------------------------+ | ?????????????????????????????????????????????????? | | ?????????????????????????????????????????????????? | | ?????????????????????????????????????????????????? | | ?????????????????????????????????????????????????? | | ?????????????????????????????????????????????????? | | ?????????????????????????????????????????????????? | | ?????????????????????????????????????????????????? | | ?????????????????????????????????????????????????? | | ?????????????????????????????????????????????????? | | ?????????????????????????????????????????????????? | | ?????????????????????????????????????????????????? | | ?????????????????????????????????????????????????? | | ?????????????????????????????????????????????????? | | ?????????????????# ??????????????????????????????? | | ?????????????????# ?????????????????????????????? | | ?????????????????# u?????????????????????????????? | | ?????????????????# ????????????????????????????? | | ?????????????????# ????????????????????????????? | | ?????????????????# ???????????????????????????? | | ?????????????????# ???????????????????????????? | | ?????????????????# ??????????????????????????? | | ?????????????????# #####+######+############## | | ??????????? ???# t | | ?????????? # | | ?????????? + A | | ?????????????????# @ | | ?????????????????# g% | | ?????????????????# #####+################# | | ?????????????????#A ???????????????????????# | | ?????????????????# ????????????????????????# | | ?????????????????# ?????????????????????????# | | ?????????????????# ??????????????????????????# | | ?????????????????????????????????????????????#!! | | ?????????????????????????????????????????????#! | | ?????????????????????????????????????????????# | | ?????????????????????????????????????????????# "" | | ?????????????????????????????????????????????# "" | | ?????????????????????????????????????????????# "" | | ?????????????????????????????????????????????# | | ?????????????????????????????????????????????# | | ?????????????????????????????????????????????# | | ???????????????????????????????????????##########+ | | ???????????????????????????????????????# | | ???????????????????????????????????????# | | ???????????????????????????????????????# | | ???????????????????????????????????????# """ "" | | ???????????????????????????????????????# """ "" | | ???????????????????????????????????????# """ "" | | ???????????????????????????????????????# | | ???????????????????????????????????????# [ """ "" | +----------------------------------------------------+ Best States ------------- Heat Dissipation 37 Coolant Potential 65 Energy Generation 18 Energy Capacity 2265 Matter Stores 300 Matter Capacity 300 Sight Range 16 Terrain Scan Density 10 Additional Mass Support 12 Armor Coverage 150 Evasion (%) 68 Targeting Accuracy 8 Melee Accuracy 6 Recoil Reduction 1 Offensive Hacking 30 Defensive Hacking 30 Relay Coupler Types 176 Relay Coupler Value 5 Item Schematics ----------------- Hacking Suite | -8/Materials | Scanalyzed Remote Datajack | -8/Materials | Scanalyzed Hvy. Missile Launcher | -8/Materials | Scanalyzed Arc Projector | -8/Materials | Scanalyzed Neutron Cannon | -7/Factory | Hacked Adv. Plasma Cannon | -6/Factory | Hacked System Shield | -6/Factory | Scanalyzed Imp. Remote Datajack | -6/Factory | Scanalyzed Transmission Jammer | -6/Factory | Scanalyzed Power Shielding | -6/Factory | Extracted Com. Wheel | -6/Factory | Extracted Greatsword | -6/Factory | Extracted Lgt. Fission Core | -6/Factory | Extracted Hrd. Light Armor Plating | -6/Factory | Extracted Imp. Core Shielding | -6/Factory | Extracted Lyr. Light Armor Plating | -6/Factory | Extracted Lrg. Storage Unit | -6/Factory | Extracted Robot Schematics ------------------ None Fabricated ------------ Hacking Suite | x1 | -7/Factory Hacking Suite | x1 | -7/Factory Hacking Suite | x1 | -7/Factory Imp. Remote Datajack | x1 | -7/Factory | Preloaded Alien Tech Used ----------------- None Achievements -------------- None Challenges ------------ None Game ------ Seed DecoderCloakingPrototype Manual? 0 Play Time 02:06:03 Cumulative 137.6 hours Start 2021.03.15 @ 23:44:02 End 2021.03.16 @ 02:18:05 Sessions 1 Manual Loads 0 Difficulty Rogue Special Mode None Game No. 195 Rogue 171 Adventurer 22 Explorer 2 Win Type - Total 1 Types 1/0/0/0/0/0/0/0/0 Lore% 52 Gallery% 58 Achievement% 45 Wizard Run 0 Options --------- ASCII 0 Keyboard 0 Movement Numpad Keybinds 0 Fullscreen 1 Font 14/SmallcapsGlow Map View 84x54 Tactical HUD 1 Map Filters NONE Filters NONE Steam 1 RUN: f9b2c1f2-b934-4a0a-87d2-f63d7a5245e2